Workbook

Sheet Overview
A1: Title and revision | B1: Cable Pulling Analysis | I1: Rev 4
A2: Purpose | B2: To provide a quick and easy method of performing detailed cable pulling calculations and ensuring that the CSA and FortisAlberta structural design requirements are met.
A3: Legal requirements and internal policies | B3: CSA C22.3 No1-10 CSA C22.1 FortisAlberta Distribution Design Manual D08-04
A6: Method of calculations | B6: The Cable Pulling Analysis (CPA) spreadsheet follows guidelines laid down in FortisAlberta’s design standards for calculating underground cable pulling tensions. Please see the CPA documentation for details on the calculations found in this sheet.
A9: Limitations | B9: Certain assumptions and design details are used in the CPA that may not be realized during actual construction. Field practices may vary from site to site as will factors such as equipment wear and tear or cleanliness of the cable and duct. Also, data used in the CPA may be outdated or not match what is actually used out in the field and therefore must be checked. A major limitation of the CPA is that it is unable to account for duct strength and therefore the conduit may collapse under high tension even if the CPA indicates the pull is safe. A full list of all other limitations of the CPA can be found in the documentation (Part 3).

Sheet CPA
A1: Project Description: | K1: Notes: 1. Plan View and Profile are automatically produced in the "Sketch" tab. 2. Cable, conduit, pull rope data, coefficients of friction and other data tables are listed in the "Data" Tab. | AA1: Ignore (not for designer use)
A2: Project Number: | F2: Cell | G2: Adjustable Auto Calc or Fill | J2: Green | AH2: End | AI2: End | AJ2: End | AK2: End | AL2: End | AM2: End
A3: Designer: | F3: Colour | G3: Fixed Auto Calculation or Fill | J3: Yellow | AH3: Straight | AI3: Straight | AJ3: Straight | AK3: Straight | AL3: Straight | AM3: Straight
A4: Date: | F4: Codes | G4: To be filled in by designer | J4: Tan | AH4: Down | AI4: Up | AJ4: Pull Box | AK4: Down | AL4: Pull Box | AM4: Pull Box
A5: Section 1: Conduit, Conductor and Pulling Apparatus Data | AH5: Up | AI5: Left | AJ5: Convex Up | AK5: Pull Box | AL5: Convex Up | AM5: Down
AH6: Left | AI6: Right | AJ6: Block Up | AK6: Block Down | AL6: Cancel Last Entry | AM6: Cancel Last Entry
B7: Conduit Type | C7: 4" DB2 | G7: Method of Cable Attachment | H7: One Basket Grip on Three Cables | AH7: Right | AI7: Pull Box | AJ7: Block Down | AL7: Block Up | AM7: Block Down
B8: Conduit I.D.[mm] | C8: =CONVERT(IF(C7<>"",VLOOKUP(C7,data_conduits,2,FALSE),0),"mm",IF(english=TRUE,"in","mm")) -> 100.1014 | AH8: Pull Box | AI8: Convex Down | AJ8: Block Convex Up
AH9: Convex Down | AI9: Dip | AJ9: Block Left
B10: Conductor Type | C10: #1 AL | AH10: Convex Up | AI10: Block Up | AJ10: Block Right
B11: Number of Cables | C11: 3 | D11: =IF(ISBLANK(manual_cable_type), IF(USEB="No", IF(AND(H7=AF16, C11>3), "Max 3 Cables for 1 grip!", IF(AND(C11<>3, H7=AF16), "Change Method of Cable Attachment", "")), IF(AND(H7=AF16, C11>1), "Max 1 USEB cable per grip!", IF(AND(C11<>3, H7=AF16), "Change Method of Cable Attachment", ""))), IF(AND(H7=AF16, C11>3), "Max 3 Cables for 1 grip!", IF(AND(C11<>3, H7=AF16), "Change Method of Cable Attachment", ""))) ->  | I11: Optional Fields | AH11: Dip | AI11: Block Down
B12: Nominal O.D. [mm] | C12: =IF(AND($C$11>0,$C$10<>""),VLOOKUP($C$10,data_conductors,8,FALSE),0) -> 29.6926 | H12: Basic Coefficient of Friction | AH12: Block Up | AI12: Block Convex Down
B13: Per Cable Mass [kg/m] | C13: =IF(AND($C$11>0,$C$10<>""),VLOOKUP($C$10,data_conductors,7,FALSE)/1000,0) -> 0.82137 | H13: Puller Equipment Tension Allowance | I13: 5000 | J13: lbs | AA13: (auto-calc) | AB13: TRUE | AC13: (logic check) | AD13: TRUE | AE13: (english) | AF13: FALSE | AH13: Block Down | AI13: Block Left
B14: Standard Reel Length [m] | AA14: (n) | AB14: =SUM(INDEX(infoRange,2)) -> 3 | AH14: Block Convex Up | AI14: Block Right
AA15: (o.d.) | AB15: =MAX(INDEX(infoRange,3)) -> 29.6926 | AF15: Aluminum Compression | AH15: Block Convex Down
B16: Configuration | C16: =determineConf(d,dD,n) -> Cradled | H16: Weight Correction Factor | I16: =calcWc(configurationType,d,dD,n) -> 1.237127164 | AA16: (unit mass) | AB16: =INDEX(infoRange,4)*TRANSPOSE(INDEX(infoRange,2)) -> 2.46411 | AD16: =IF(AND(E11>0,E10<>""),E11*E13,"") ->  | AF16: One Basket Grip on Three Cables | AH16: Block Left
B17: Lubrication | C17: No | H17: Total Cables Unit Weight [N/m] | I17: =AB16*9.801 -> 24.15074211 | AA17: (unit area) | AB17: =0.25*PI()*(INDEX(infoRange,3)^2*TRANSPOSE(INDEX(infoRange,2))) -> 2077.340038 | AF17: One Basket Grip on Each Cable | AH17: Block Right
B18: Initial Reel Tension [N] | C18: 444.8222 | AA18: (reel) | AB18: =MIN(INDEX(infoRange,5)) -> 0
A20: Section 2: Design Data | AA20: (initial reel)
AA21: =AA22/2 -> 222.4111
B22: Section | C22: 1 | D22: =IF(ISBLANK(C23),"",C22+1) -> 2 | E22: =IF(ISBLANK(D23),"",D22+1) -> 3 | AA22: 444.8222
B23: Type | C23: Down | D23: Straight | AA23: 1112
B24: Initial Reel Tension [N] | C24: =tension -> 444.8222 | D24: 444.8222 | E24: 444.8222 | F24: 444.8222 | G24: 444.8222 | H24: 444.8222 | I24: 444.8222 | J24: 444.8222 | K24: 444.8222 | L24: 444.8222 | M24: 444.8222 | N24: 444.8222 | O24: 444.8222 | P24: 444.8222 | Q24: 444.8222 | R24: 444.8222 | AA24: 1 | AB24: 1
B25: Length [m] | D25: 10 | AB25: (USEB cable?) | AC25: =IF(VLOOKUP(C10,cable_mat,6,FALSE) = "Yes", "Yes", "No") -> No
B26: Grade [°] | D26: 0 | AB26: (concentric wire?) | AC26: =IF(VLOOKUP(C10, list_conductors_type, 2,FALSE) = "Primary", "Yes", "No") -> Yes
B27: Angle [°] | C27: 90 | AA27: (conduit material type) | AC27: =VLOOKUP(C7,conduit_mat,2,FALSE) -> PVC
B28: Radius [m] | C28: =IF(REPLACE(C23, 6, 15, "")="Block", 0.4223, IF(OR(C27=90, C27=45, C27=22.5), VLOOKUP(conduitType, data_conduits, 5, FALSE), VLOOKUP(conduitType, data_conduits, 7, FALSE))) -> 0.9144 | D28: 0.406 | E28: 0.406 | F28: 0.406 | G28: 0.406 | H28: 0.406 | I28: 0.406 | J28: 0.406 | K28: 0.406 | L28: 0.406 | M28: 0.406 | N28: 0.406 | O28: 0.406 | P28: 0.406 | Q28: 0.406 | R28: 0.406 | AA28: (cable material type) | AC28: =VLOOKUP(C10,cable_mat,2,FALSE) -> LLDPE | AE28: =IF(ISBLANK(AE29)=TRUE,1,2) -> 1
B29: =IF(AND(C29="", D29="", E29="", F29="", G29="", H29="", I29="", J29="", K29="", L29="", M29="", N29="", O29="", P29="", Q29=""), "", "Minimum Req'd Radius") ->  | C29: =IF(OR(C23="Straight", C23="End", C23="Pull Box", C23="Dip", ISBLANK(C23)), "", IF(REPLACE(C23, 6, 15, "")="Block", C60, IF(VLOOKUP($C$10, list_conductors_type, 2, FALSE)= "Primary", IF(MAX(C30/concentricSWBP, VLOOKUP($C$10, data_bending_radius, 5, FALSE), VLOOKUP(conduitType, data_conduits, 7, FALSE))>C28, "Min "&ROUND(MAX(C30/concentricSWBP, VLOOKUP($C$10, data_bending_radius, 5, FALSE), VLOOKUP(conduitType, data_conduits, 7, FALSE)), 4)&"m", ""), IF(MAX(C30/shieldedSWBP, VLOOKUP($C$10, data_bending_radius, 5, FALSE), VLOOKUP(conduitType, data_conduits, 7, FALSE))>C28, "Min "&ROUND(MAX(C30/shieldedSWBP, VLOOKUP($C$10, data_bending_radius, 5, FALSE), VLOOKUP(conduitType, data_conduits, 7, FALSE)), 4)&"m", "")))) ->  | R29: =VLOOKUP(conduitType, data_conduits, 5, FALSE) -> 0.9144
B30: Pull Tension [N] | C30: 754.2970992 | D30: 843.9297165 | E30: 843.9297165 | AB30: (Formulas for Not unique)
B31: ="SWBP "&IF(english,"[lb/ft]","[N/m]") -> SWBP [N/m] | C31: 470.5781914 | D31: 13.77704435 | AB31: Nominal O.D. [mm] | AC31: =IF(AND($C$11>0,$C$10<>""),VLOOKUP($C$10,data_conductors,8,FALSE),0) -> 29.6926
B32: Coefficient of Friction | C32: 0.3 | D32: 0.3 | AB32: Unit Mass [kg/m] | AC32: =IF(AND($C$11>0,$C$10<>""),VLOOKUP($C$10,data_conductors,7,FALSE)/1000,0) -> 0.82137
B33: Effective Friction | C33: 0.3711381492 | D33: 0.3711381492 | AB33: Standard Reel Length [m] | AC33: =IF(AND($C$11>0,$C$10<>""),VLOOKUP($C$10,data_conductors,9,FALSE),0) -> 800
N35: Maximum Calculated Pull Tension [N] | O35: =MAX(INDEX(outputRange,1,)) -> 843.9297165 | AE35: (manual cable jacket material)
N36: Maximum Calculated SWBP [N/m] | O36: =MAX(INDEX(outputRange,2,)) -> 470.5781914 | AB36: (conductor tension constant) | AC36: =VLOOKUP(C10,cable_mat,4,FALSE) -> 0.0267 | AE36: (manual tension constant)
B37: Progress: | C37: Done | F37: =IF(ISBLANK(manual_friction), IF(C23="End", "", IF(OR(C33 <> C32*Wc, IF(lub="Yes", C32<>VLOOKUP(conduit_mat_type, lub_friction_cond, IF(ISBLANK(manual_cable_mat), IF(cable_mat_type="LLDPE", 2, 3), IF(manual_cable_mat="LLDPE", 2, 3)), FALSE), C32<>VLOOKUP(conduit_mat_type, unlub_friction_cond, IF(ISBLANK(manual_cable_mat), IF(cable_mat_type="LLDPE", 2, 3), IF(manual_cable_mat="LLDPE", 2, 3)), FALSE))), "Update Incomplete", "")), "") ->  | AB37: (conductor area) | AC37: =VLOOKUP(C10,cable_mat,5,FALSE) -> 83690 | AE37: (manual conductor area)
AE38: (manual cable type)
A39: Section 3: Summary | AB39: (table 6 maximum pulling tension cable grips) | AC39: =IF(concentric_1="No",IF(n=1, unshieldedSingle, unshieldedMultiple),IF(n=1,concentricSingle,concentricMultiple)) -> 22241 | AE39: (manual maximum tension cable grips) | AG39: =IF(concentric="No",IF(n=1, unshieldedSingle, unshieldedMultiple),IF(n=1,concentricSingle,concentricMultiple)) -> 22241
AB40: (table 7 (standard) max pulling tension) | AC40: =IF(H7=AF15, VLOOKUP(C10, max_pulling_tension, IF(n=1, 2, 3), FALSE), IF(H7=AF16, VLOOKUP(C10, max_pulling_tension, IF(n=1, 4, 5), FALSE), VLOOKUP(C10, max_pulling_tension, IF(n=1, 4, 6), FALSE))) -> 4465.792 | AE40: (Manual maximum tension) | AF40: =IF(H7=AF15, IF(C11=1, 1, C11-1)*manual_cond_area*manual_tens_const, MIN(IF(C11=1, 1, C11-1)*manual_cond_area*manual_tens_const, manual_max_tens)) -> 0
B41: Pull Tension [N] | C41: =O35 -> 843.9297165 | D41: =ROUND(C41/4.448, 0)&" lbs" -> 190 lbs | H41: =IF(J41="OK","","Over ")&"Maximum Tension Allowance " &IF(J41="OK","Remaining","") &" [%]" -> Maximum Tension Allowance Remaining [%] | I41: =IF(ISBLANK(manual_tens_const), ABS((O35-AC41)/AC41)*100, ABS(manual_max_tens_b-O35)/manual_max_tens_b*100) -> 81.11611032 | J41: =IF(ISBLANK(manual_tens_const), IF(AC41-O35<0, "NOT OK", "OK"), IF(MIN(IF(C11=1, 1, C11-1)*manual_cond_area*manual_tens_const, manual_max_tens)-O35<0, "NOT OK", "OK")) -> OK | O41: =IF(Q41="OK","","Over ")&"Puller"&" Tension Allowance " &IF(Q41="OK","Remaining","")&" [%]" -> Puller Tension Allowance Remaining [%] | P41: =ABS(AC42-O35)/AC42*100 -> 96.20535199 | Q41: =IF(AC42-O35<0, "NOT OK", "OK") -> OK | AB41: (table 7 expanded as calculated by the CPA) | AC41: =MIN(IF(AND(n>=3, H7=AF17), IF(concentric_1="Yes", concentricSingle*2, unshieldedSingle*2), IF(H7=AF15, 99999, AC39)), IF(USEB="Yes", AC36*AC37*2, IF(n>1, AC36*AC37*(n-1), AC36*AC37*n))) -> 4469.046 | AE41: (concentric wire?) | AF41: Yes
B42: Maximum SWBP [N/m] | C42: =O36 -> 470.5781914 | H42: =IF(J42="OK","","Over ")&"Cable SWBP Allowance " &IF(J42="OK","Remaining","") &" [%]" -> Cable SWBP Allowance Remaining [%] | I42: =IF(ISBLANK(manual_tens_const), IF(VLOOKUP($C$10, list_conductors_type, 2, FALSE)= "Primary", ABS(concentricSWBP-C42)/(concentricSWBP)*100, ABS(shieldedSWBP-C42)/(shieldedSWBP)*100), IF(manual_cable_type="Concentric Wire", ABS(concentricSWBP-C42)/(concentricSWBP)*100, ABS(shieldedSWBP-C42)/(shieldedSWBP)*100)) -> 98.38767715 | J42: =IF(VLOOKUP($C$10, list_conductors_type, 2, FALSE)= "Primary",IF(concentricSWBP-C42>0,"OK","NOT OK"),IF(shieldedSWBP-C42>0,"OK","NOT OK")) -> OK | O42: =IF(Q42="OK","","Over ")&"Pulling Equipment Tension Allowance " &IF(Q42="OK","Remaining","")&" [%]" -> Pulling Equipment Tension Allowance Remaining [%] | P42: =IF(H7=AF15, ABS(4000*4.448-O35)/(4000*4.448)*100, ABS(3280*4.448-O35)/(3280*4.448)*100) -> 94.2154756 | Q42: =IF(3280*4.448-O35<0, "NOT OK", "OK") -> OK | AB42: (maximum pulling tension, puller equipment) | AC42: =IF(I13="", 5000*4.448, I13*4.448) -> 22240
B45: Groove Snag Potential | C45: =d/VLOOKUP("Pull Rope",data_conductors,8,FALSE) -> 1.349663636 | D45: =IF(C45>1,"Low",IF(C42<maxSWBP,IF(C45>0.9,"Moderate","High"),"High")) -> Low | H45: Calculated System Linear Length [m] | I45: 11.29315688 | J45: =IF(C14>0,IF(length>AB18,"Larger Reel or Splicing/Pull Box",IF(CEILING(n*length/AB18,1)=1,CEILING(n*length/AB18,1)&" Reel",CEILING(n*length/AB18,1)&" Reels")),"Unavailable") -> Unavailable | AB45: USEB Cable Minor Dimenstion | AC45: =VLOOKUP(C10, data_conductors, 6, FALSE) -> 0
B46: Jamming Ratio | C46: =IF(USEB="Yes", dD/Y, dD/d) -> 3.371257485 | D46: =IF(n=1,"Low",IF(C46<2.5,"Low",IF(C46<2.8,"Moderate",IF(C46<=3,"High", "Low")))) -> Low | H46: Total Length of Cable Needed [m] | I46: =n*length -> 33.87947064 | AB46: USEB Cable Major Dimenstion | AC46: =VLOOKUP(C10, data_conductors, 5, FALSE) -> 0
B47: XSect Area Used [%] | C47: =IF(USEB="Yes", ((PI()*Z^2/4+Z*(Y-Z)*n)/(PI()*(dD/2)^2))*100, AB17/(PI()*(dD/2)^2)*100) -> 26.3959567 | D47: =IF(AB14=1,IF(C47<53,"OK","NOT OK"),IF(AB14=2,IF(C47<31,"OK","NOT OK"),IF(C47<40,"OK","NOT OK"))) -> OK
B48: Clearance [mm] | C48: =IF(USEB="Yes", dD-1.05*Y, calcClearance(n,d,dD,0.05)) -> 38.19744374 | D48: =IF(ISERROR(C48), "NOT OK", IF(C48>12.6,"OK","NOT OK")) -> OK | H48: Volume of Lubricant Needed [L] | I48: =IF(lub="Yes",(n*PI()*((0.254/1000)^2+2*d/2000*(0.254/1000))*1000*length+(PI()*((0.254/1000)^2+2*VLOOKUP("Pull Rope",data_conductors,8,FALSE)/2000*(0.254/1000)))*1000*length)*IF(lub="Yes",1,0),"No Lubrication") -> No Lubrication | M48: Lubrication Required | N48: =IF(lub="Yes","Selected",IF(OR(I41<30,P41<30,P42<0,J41="NOT OK",J42="NOT OK",Q41="NOT OK",Q42="NOT OK"), "Yes", "No")) -> No
B52: =IF(english,"Metric","English") &" Units for Comparison Purposes Only (not printed)" -> English Units for Comparison Purposes Only (not printed)
B54: ="Pull Tension "&IF(english,"[N]","[lb]") -> Pull Tension [lb] | C54: =IF(C30<>"",CONVERT(C30,IF(english=TRUE,"lbf","N"),IF(english=TRUE,"N","lbf")),"") -> 169.5727337 | D54: 189.7229476 | E54: 189.7229476
B55: ="SWBP "&IF(english,"[N/m]","[lb/ft]") -> SWBP [lb/ft] | C55: =IF(C31<>"",IF(english=TRUE,C31*14.5939041994751,C31/14.5939041994751),"") -> 32.24484586 | D55: =IF(D31<>"",IF(english=TRUE,D31*14.5939041994751,D31/14.5939041994751),"") -> 0.9440273257
B59: Minimum Req'd Radius: | C59: 1 | D59: =C59+1 -> 2 | E59: =D59+1 -> 3 | F59: 4 | G59: 5 | H59: 6 | I59: 7 | J59: 8 | K59: 9 | L59: 10 | M59: 11 | N59: 12 | O59: 13 | P59: 14 | Q59: 15
B60: → If using Blocks | C60: =IF(VLOOKUP($C$10, list_conductors_type, 2, FALSE)= "Primary", IF(MAX(C30/concentricSWBP, VLOOKUP($C$10, data_bending_radius, 5, FALSE))>C28, "Min "&ROUND(MAX(C30/concentricSWBP, VLOOKUP($C$10, data_bending_radius, 5, FALSE)), 3)&"m", ""), IF(MAX(C30/shieldedSWBP, VLOOKUP($C$10, data_bending_radius, 5, FALSE))>C28, "Min "&ROUND(MAX(C30/shieldedSWBP, VLOOKUP($C$10, data_bending_radius, 5, FALSE)), 3)&"m", "")) -> 

Sheet Sketch
A1: Overall Summary:
D4: =CPA!B7 -> Conduit Type | E4: =CPA!C7 -> 4" DB2
D5: =CPA!B8 -> Conduit I.D.[mm] | E5: =CPA!C8 -> 100.1014
D7: =CPA!B10 -> Conductor Type | E7: =CPA!C10 -> #1 AL | I7: =CPA!#REF! ->  | J7: =CPA!#REF! ->  | K7: =CPA!#REF! -> 
D8: =CPA!B11 -> Number of Cables | E8: =CPA!C11 -> 3 | I8: =CPA!#REF! ->  | J8: =CPA!#REF! ->  | K8: =CPA!#REF! -> 
D9: =CPA!B12 -> Nominal O.D. [mm] | E9: =CPA!C12 -> 29.6926 | J9: =CPA!#REF! ->  | K9: =CPA!#REF! -> 
D10: =CPA!B13 -> Per Cable Mass [kg/m] | E10: =CPA!C13 -> 0.82137 | I10: =CPA!G13 -> 0 | J10: =CPA!#REF! ->  | K10: =CPA!#REF! -> 
D11: =CPA!B14 -> Standard Reel Length [m] | E11: =CPA!C14 -> 0 | J11: =CPA!#REF! ->  | K11: =CPA!#REF! -> 
D13: =CPA!B16 -> Configuration | E13: =CPA!C16 -> Cradled
D14: =CPA!B17 -> Lubrication | E14: =CPA!C17 -> No
D15: =CPA!B18 -> Initial Reel Tension [N] | E15: =CPA!C18 -> 444.8222
D17: =CPA!H16 -> Weight Correction Factor | E17: =CPA!I16 -> 1.237127164
D18: =CPA!H17 -> Total Cables Unit Weight [N/m] | E18: =CPA!I17 -> 24.15074211
D20: =CPA!B41 -> Pull Tension [N] | E20: =CPA!C41 -> 843.9297165 | F20: =ROUND(E20/4.448, 0)&" lbs" -> 190 lbs
D21: =CPA!B42 -> Maximum SWBP [N/m] | E21: =CPA!C42 -> 470.5781914
D22: =CPA!B45 -> Groove Snag Potential | E22: =CPA!C45 -> 1.349663636 | F22: =CPA!D45 -> Low
D23: =CPA!B46 -> Jamming Ratio | E23: =CPA!C46 -> 3.371257485 | F23: =CPA!D46 -> Low
D24: =CPA!B47 -> XSect Area Used [%] | E24: =CPA!C47 -> 26.3959567 | F24: =CPA!D47 -> OK
D25: =CPA!B48 -> Clearance [mm] | E25: =CPA!C48 -> 38.19744374 | F25: =CPA!D48 -> OK
D27: =CPA!H41 -> Maximum Tension Allowance Remaining [%] | E27: =CPA!I41 -> 81.11611032 | F27: =CPA!J41 -> OK
D28: =CPA!H42 -> Cable SWBP Allowance Remaining [%] | E28: =CPA!I42 -> 98.38767715 | F28: =CPA!J42 -> OK
D29: =CPA!O41 -> Puller Tension Allowance Remaining [%] | E29: =CPA!P41 -> 96.20535199 | F29: =CPA!Q41 -> OK
D30: =CPA!O42 -> Pulling Equipment Tension Allowance Remaining [%] | E30: =CPA!P42 -> 94.2154756 | F30: =CPA!Q42 -> OK
D33: =CPA!H45 -> Calculated System Linear Length [m] | E33: =CPA!I45 -> 11.29315688 | F33: =CPA!J45 -> Unavailable
D34: =CPA!H46 -> Total Length of Cable Needed [m] | E34: =CPA!I46 -> 33.87947064
D36: =CPA!H48 -> Volume of Lubricant Needed [L] | E36: =CPA!I48 -> No Lubrication
D37: =CPA!M48 -> Lubrication Required | E37: =CPA!N48 -> No
D39: =IF(OR(F24="NOT OK",F25="NOT OK",F27="NOT OK",F28="NOT OK",F29="NOT OK",F30="NOT OK",F31="NOT OK",E37="YES"),"NOT OK",IF(OR(F22="High",F23="High"),"Caution","OK")) -> OK

Sheet Data
A1: Conductor Data
A3: 600V 1/0 | D3: Conductor | E3: Conductor | F3: Insulation | G3: Insulation | H3: Major | I3: Minor | J3: Mass | K3: Nominal | L3: Reel | N3: List of
E4: O.D. | F4: Thickness | G4: Diameter | H4: Dimension | I4: Dimension | J4: Density | K4: O.D. | L4: Length | N4: Common U/G Cables
E5: [mm] | F5: [mm] | G5: [mm] | H5: [mm] | I5: [mm] | J5: [kg/km] | K5: [mm] | L5: [m] | N5: used
C6: Secondary | D6: 600V 6 AWG | E6: =G6-2*F6 -> 4.394 | F6: 1.143 | G6: 6.68 | H6: 19.3 | I6: 12.62 | J6: 268 | K6: =SQRT(I6^2 + 4*((I6*H6 - I6^2)/PI())) -> 16.3279065 | N6: 600V 1/0 | O6: Secondary
D7: 600V 4 AWG | E7: 5.514 | F7: 1.143 | G7: 7.8 | H7: 22.56 | I7: 14.76 | J7: 402 | K7: =SQRT(I7^2 + 4*((I7*H7 - I7^2)/PI())) -> 19.09039346 | N7: 600V 4/0 | O7: Secondary
D8: 600V 3 AWG | E8: 6.174 | F8: 1.143 | G8: 8.46 | H8: 24.36 | I8: 15.9 | J8: 476 | K8: 20.59316741 | N8: 600V 300 MCM | O8: Secondary
D9: 600V 2 AWG | E9: 6.8072 | F9: 1.08839 | G9: 8.98398 | H9: 25.07 | I9: 16.09 | J9: 538.36 | K9: 21.04414859 | L9: 300 | N9: 600V #4 AL | O9: Secondary
D10: 600V 1 AWG | E10: 7.746 | F10: 1.397 | G10: 10.54 | H10: 28.58 | I10: 18.03 | J10: 669 | K10: 23.81747404 | N10: 600V 2 AWG | O10: Secondary
D11: 600V 1/0 | E11: 8.7008 | F11: 1.39 | G11: =0.452*25.4 -> 11.4808 | H11: =1.199*25.4 -> 30.4546 | I11: =0.747*25.4 -> 18.9738 | J11: 800.54 | K11: 25.24599894 | L11: 1000 | N11: #1 AL | O11: Primary
D12: 600V 2/0 | E12: 9.706 | F12: 1.397 | G12: 12.5 | H12: 32.49 | I12: 19.99 | J12: 958 | K12: 26.79087216 | N12: 500 MCM | O12: Primary
D13: 600V 3/0 | E13: 10.926 | F13: 1.397 | G13: 13.72 | H13: 34.93 | I13: 21.21 | J13: 1135 | K13: 28.64224739 | N13: 750 MCM | O13: Primary
D14: 600V 4/0 | E14: 12.2568 | F14: 1.39 | G14: =0.592*25.4 -> 15.0368 | H14: =1.505*25.4 -> 38.227 | I14: =0.913*25.4 -> 23.1902 | J14: 1385.33 | K14: 31.33324358 | L14: 500
D15: 600V 250 MCM | E15: 13.488 | F15: 1.651 | G15: 16.79 | H15: 41.73 | I15: 24.94 | J15: 1653 | K15: 33.98769244 | P15: Nominal O.D calculation:
D16: 600V 300 MCM | E16: =G16-2*F16 -> 14.7848 | F16: 1.65 | G16: =0.712*25.4 -> 18.0848 | H16: 46.74 | I16: =1.128*25.4 -> 28.6512 | J16: 2101.06 | K16: 38.48074592 | L16: 300 | N16: Changed Values (Rev 2)
D17: 600V 350 MCM | E17: =G17-2*F17 -> 15.928 | F17: 1.651 | G17: 19.23 | H17: 49.02 | I17: 29.79 | J17: 2421 | K17: 40.20987777 | N17: Added in new 600V 2 AWG and edited nominal OD eqn (Rev 3)
D18: 600V #4 AL | E18: 5.19 | H18: 16.49 | I18: =0.649*25.4 -> 16.4846 | J18: 269.33 | K18: 16.48803739 | L18: 1100
C19: Primary | D19: #1 AL | E19: 7.35 | J19: 821.37 | K19: 29.6926 | L19: 800
D20: 1/0 | E20: 9.19 | J20: 1033 | K20: 32.6 | N20: Notes:
D21: 2/0 | E21: 10.31 | J21: 1138 | K21: 33.7 | N21: 1. To add conductors:
D22: 3/0 | E22: 11.58 | J22: 1306 | K22: 35.5 | N22: Have all required information handy for the cable to be added
D23: 4/0 | E23: 13 | J23: 1432 | K23: 37 | N23: Press 'Add New Cable Type' button
D24: 250 MCM | E24: 14.17 | J24: 1590 | K24: 38.5 | N24: Input all information into the form. Press okay
D25: 350 MCM | E25: 16.76 | J25: 1945 | K25: 41.1 | L25: 700 | N25: 2. To change conductor information:
D26: 500 MCM | E26: 18.8 | J26: 2477.52 | K26: 43.9 | L26: 500 | N26: Unprotect sheet.
D27: 750 MCM | E27: 23.11 | J27: 3196.22 | K27: 49.02 | L27: 450 | N27: Change conductor information.
D28: 1000 MCM | E28: 28.37 | J28: 4458 | K28: 58.4
C29: Pull Rope | D29: Pull Rope | J29: 296.7423 | K29: 22 | L29: 900
A33: Conduit Data | D33: Type | E33: I.D. [mm] | F33: O.D [mm] | G33: Material | H33: Rigid Bend Radius [m] | J33: Min CEC Bending Radius (CEC P1, rule 12-922 T7) m
D35: 6" DB2 | E35: 149.7584 | F35: 159.385 | G35: PVC | H35: =CONVERT(60,"in","m") -> 1.524 | J35: 0.762
D36: 4" DB2 | E36: 100.1014 | F36: 107.0864 | G36: PVC | H36: =CONVERT(36,"in","m") -> 0.9144 | J36: 0.406
D37: 3" DB2 | E37: 76.2 | F37: 82.55 | G37: PVC | H37: =CONVERT(36,"in","m") -> 0.9144 | J37: 0.33
D38: 2" DB2 | E38: 50.83 | F38: 57.15 | G38: PVC | H38: =CONVERT(24,"in","m") -> 0.6096 | J38: 0.241
D39: 6" PVC | E39: 154.051 | F39: 168.275 | G39: PVC | H39: =CONVERT(36,"in","m") -> 0.9144 | J39: 0.762
D40: 4" PVC | E40: 102.2604 | F40: 114.3 | G40: PVC | H40: =CONVERT(36,"in","m") -> 0.9144 | J40: 0.406
D41: 3" PVC | E41: 77.93 | F41: 88.9 | G41: PVC | H41: =CONVERT(36,"in","m") -> 0.9144 | J41: 0.33
D42: 2" PVC | E42: 52.5 | F42: 60.3 | G42: PVC | H42: =CONVERT(24,"in","m") -> 0.6096 | J42: 0.241
D43: 4" HDPE | E43: 93.47 | F43: 114.3 | G43: HDPE | H43: =19*4.5*0.0254 -> 2.1717 | J43: 0.406
D44: 4" TR | E44: =4*25.4 -> 101.6 | F44: =4.5*25.4 -> 114.3 | G44: PVC | H44: 0.91 | J44: 0.406
D45: 1.5" HDPE | E45: 38.96 | F45: 48.26 | G45: HDPE | H45: =19*1.5*0.0254 -> 0.7239 | J45: 0.197
H47: Material Selection Table | K47: Conduit | O47: Cable
K48: Type | L48: Material | M48: Type | N48: Jacket | O48: Conductor | P48: Conductor Cable | Q48: Conductor | R48: USEB cable?
A49: Dynamic Coefficients Of Friction | N49: Material | O49: Material | P49: Constant (N/cmil) | Q49: Area (cmil)
C50: Lubricated | E50: Cable Jacket | K50: 6" DB2 | L50: PVC | M50: 600V 1/0 | N50: PVC | O50: Alu Strand | P50: 0.0356 | Q50: 105600 | R50: Yes
D51: Conduit | E51: LLDPE | F51: PVC | K51: 4" DB2 | L51: PVC | M51: 600V 4/0 | N51: PVC | O51: Alu Strand | P51: 0.0356 | Q51: 211600 | R51: Yes
D52: PVC | E52: 0.25 | F52: 0.15 | K52: 3" DB2 | L52: PVC | M52: 600V 300 MCM | N52: PVC | O52: Alu Strand | P52: 0.0356 | Q52: 300000 | R52: Yes
D53: Steel | E53: 0.49 | F53: 0.22 | K53: 2" DB2 | L53: PVC | M53: 600V #4 AL | N53: PVC | O53: Alu Strand | P53: 0.0356 | Q53: 41740 | R53: No
D54: HDPE | E54: 0.23 | F54: 0.25 | K54: 6" PVC | L54: PVC | M54: 600V 2 AWG | N54: PVC | O54: Alu Strand | P54: 0.0356 | Q54: 66370 | R54: Yes
K55: 4" PVC | L55: PVC | M55: #1 AL | N55: LLDPE | O55: Alu Solid | P55: 0.0267 | Q55: 83690 | R55: No
K56: 3" PVC | L56: PVC | M56: 500 MCM | N56: LLDPE | O56: Alu Stranded | P56: 0.0356 | Q56: 500000 | R56: No
C57: Un Lubricated | E57: Cable Jacket | K57: 2" PVC | L57: PVC | M57: 750 MCM | N57: LLDPE | O57: Alu Stranded | P57: 0.0356 | Q57: 750000 | R57: No
D58: Conduit | E58: LLDPE | F58: PVC | K58: 4" HDPE | L58: HDPE
D59: PVC | E59: 0.3 | F59: 0.56 | K59: 4" TR | L59: PVC
D60: Steel | E60: 0.68 | F60: 0.55 | K60: 1.5" HDPE | L60: HDPE
D61: HDPE | E61: 0.38 | F61: 0.56
H64: Fortis Maximum Pulling Tension (D08-04 Table 7)
E65: (in Newtons) | O65: Maximum Pulling Tension (N)
A66: Maximum Pulling Tension Cable Grips (D08-04 Table 6) | D66: Type of Cable | E66: Single Cable | F66: Multiple Cables | N66: Aluminum Compression | Q66: Basket Grip
D67: Unshielded | E67: 8896 | F67: 8896 | M67: Cable | N67: One Cable | O67: Three Cables | P67: One Cable | Q67: 3 Cables, 1 Grip | R67: 3 Grips, 1 Per Cable
D68: Concentric Wire | E68: 44482 | F68: 22241 | M68: 600V 1/0 | N68: =1690*4.448 -> 7517.12 | O68: n/a | P68: =1690*4.448 -> 7517.12 | Q68: n/a | R68: n/a
M69: 600V 4/0 | N69: 15066 | O69: n/a | P69: =2000*4.448 -> 8896 | Q69: n/a | R69: n/a
M70: 600V 300 MCM | N70: =4800*4.448 -> 21350.4 | O70: n/a | P70: =2000*4.448 -> 8896 | Q70: n/a | R70: n/a
F71: (in N/m) | M71: 600V #4 AL | N71: =334*4.448 -> 1485.632 | O71: n/a | P71: =334*4.448 -> 1485.632 | Q71: n/a | R71: n/a
F72: 14594 | M72: 600V 2 AWG | N72: =624*4.448 -> 2775.552 | O72: n/a | P72: =624*4.448 -> 2775.552 | Q72: n/a | R72: n/a
A73: Groove Snag Potential SWBP Limit (as per EL3333): | M73: #1 AL | N73: =502*4.448 -> 2232.896 | O73: =1004*4.448 -> 4465.792 | P73: =502*4.448 -> 2232.896 | Q73: =1004*4.448 -> 4465.792 | R73: =1004*4.448 -> 4465.792
M74: 500 MCM | N74: =4000*4.448 -> 17792 | O74: =8000*4.448 -> 35584 | P74: =4000*4.448 -> 17792 | Q74: =5000*4.448 -> 22240 | R74: =8000*4.448 -> 35584
E75: (in N/m of bend radius) | M75: 750 MCM | N75: =6000*4.448 -> 26688 | O75: =12000*4.448 -> 53376 | P75: =6000*4.448 -> 26688 | Q75: =5000*4.448 -> 22240 | R75: =12000*4.448 -> 53376
A76: Maximum SWBP of Bend Radius | D76: Type of Cable | E76: SWBP (N/m) | L76: Minimum Required Bending Radius
D77: Concentric Wire | E77: 29186.35 | N77: Min Dynamic Bending Radius | P77: Min Static Bending Radius
D78: Shielded Wire | E78: 21889.76 | M78: Cable | N78: Inch | O78: m | P78: Inch | Q78: m
M79: 600V 1/0 | N79: 14 | O79: =N79*0.0254 -> 0.3556 | P79: 6 | Q79: =P79*0.0254 -> 0.1524
M80: 600V 4/0 | N80: 16 | O80: 0.4064 | P80: 8 | Q80: 0.2032
M81: 600V 300 MCM | N81: 16 | O81: 0.4064 | P81: 9 | Q81: 0.2286
M82: 600V #4 AL | N82: 6 | O82: 0.1524 | P82: 5 | Q82: 0.127
M83: 600V 2 AWG | N83: 8 | O83: 0.2032 | P83: 5 | Q83: 0.127
M84: #1 AL | N84: 14 | O84: 0.3556 | P84: 9 | Q84: 0.2286
M85: 500 MCM | N85: 24 | O85: 0.6096 | P85: 15 | Q85: 0.381
M86: 750 MCM | N86: 36 | O86: 0.9144 | P86: 16 | Q86: 0.4064

Sheet Drafting (hidden)
A1: Drafting
C3: ="i" -> i | D3: j | E3: k | F3: ij | G3: l | I3: Notes:
C4: 0 | D4: 0 | E4: 1.87546575e-10 | F4: 0 | G4: 1.87546575e-10 | I4: 1. Do not attempt to alter or delete this sheet.
C5: 0.0112577813 | D5: 0 | E5: -0.1430436747 | F5: 0.0112577813 | G5: 0.1434859941 | I5: 2. These values are used to graph the profile and plan view.
C6: 0.0447539214 | D6: 0 | E6: -0.2825651395 | F6: 0.0447539214 | G6: 0.2860873495
C7: 0.09966363414 | D7: 0 | E7: -0.4151289129 | F7: 0.09966363414 | G7: 0.4269248813
C8: 0.1746348602 | D8: 0 | E8: -0.5374708346 | F8: 0.1746348602 | G8: 0.5651302792
C9: 0.2678215591 | D9: 0 | E9: -0.6465784407 | F9: 0.2678215591 | G9: 0.699851461
C10: 0.3769291651 | D10: 0 | E10: -0.7397651397 | F10: 0.3769291651 | G10: 0.8302578259
C11: 0.4992710868 | D11: 0 | E11: -0.8147363658 | F11: 0.4992710868 | G11: 0.9555453751
C12: 0.6318348601 | D12: 0 | E12: -0.8696460786 | F12: 0.6318348601 | G12: 1.074941669
C13: 0.771356325 | D13: 0 | E13: -0.9031422188 | F13: 0.771356325 | G13: 1.187710591
C14: 0.9143999998 | D14: 0 | E14: -0.9144000002 | F14: 0.9143999998 | G14: 1.293156881
C15: 1.9144 | D15: 0 | E15: -0.9144000002 | F15: 1.9144 | G15: 2.293156881
C16: 2.9144 | D16: 0 | E16: -0.9144000002 | F16: 2.9144 | G16: 3.293156881
C17: 3.9144 | D17: 0 | E17: -0.9144000002 | F17: 3.9144 | G17: 4.293156881
C18: 4.9144 | D18: 0 | E18: -0.9144000002 | F18: 4.9144 | G18: 5.293156881
C19: 5.9144 | D19: 0 | E19: -0.9144000002 | F19: 5.9144 | G19: 6.293156881
C20: 6.9144 | D20: 0 | E20: -0.9144000002 | F20: 6.9144 | G20: 7.293156881
C21: 7.9144 | D21: 0 | E21: -0.9144000002 | F21: 7.9144 | G21: 8.293156881
C22: 8.9144 | D22: 0 | E22: -0.9144000002 | F22: 8.9144 | G22: 9.293156881
C23: 9.9144 | D23: 0 | E23: -0.9144000002 | F23: 9.9144 | G23: 10.29315688
C24: 10.9144 | D24: 0 | E24: -0.9144000002 | F24: 10.9144 | G24: 11.29315688
C25: 0.9143999997 | D25: 0 | E25: -0.9144000002 | F25: 0.9143999999 | G25: 1.293156882
C26: 0.9143999997 | D26: 0 | E26: -0.9144000002 | F26: 0.9143999999 | G26: 1.293156882
C27: 0.9143999997 | D27: 0 | E27: -0.9144000002 | F27: 0.9143999999 | G27: 1.293156882
C28: 0.9143999997 | D28: 0 | E28: -0.9144000002 | F28: 0.9143999999 | G28: 1.293156882
C29: 0.9143999997 | D29: 0 | E29: -0.9144000002 | F29: 0.9143999999 | G29: 1.293156882
C30: 0.9143999997 | D30: 0 | E30: -0.9144000002 | F30: 0.9143999999 | G30: 1.293156882
C31: 0.9143999997 | D31: 0 | E31: -0.9144000002 | F31: 0.9143999999 | G31: 1.293156882
C32: 0.9143999997 | D32: 0 | E32: -0.9144000002 | F32: 0.9143999999 | G32: 1.293156882
C33: 0.9143999997 | D33: 0 | E33: -0.9144000002 | F33: 0.9143999999 | G33: 1.293156882
C34: 0.9143999997 | D34: 0 | E34: -0.9144000002 | F34: 0.9143999999 | G34: 1.293156882
C35: 0.9143999997 | D35: 0 | E35: -0.9144000002 | F35: 0.9143999999 | G35: 1.293156882
C36: 0.9143999997 | D36: 0 | E36: -0.9144000002 | F36: 0.9143999999 | G36: 1.293156882
C37: 0.9143999997 | D37: 0 | E37: -0.9144000002 | F37: 0.9143999999 | G37: 1.293156882
C38: 0.9143999997 | D38: 0 | E38: -0.9144000002 | F38: 0.9143999999 | G38: 1.293156882
C39: 0.9143999997 | D39: 0 | E39: -0.9144000002 | F39: 0.9143999999 | G39: 1.293156882
C40: 0.9143999997 | D40: 0 | E40: -0.9144000002 | F40: 0.9143999999 | G40: 1.293156882
C41: 0.9143999997 | D41: 0 | E41: -0.9144000002 | F41: 0.9143999999 | G41: 1.293156882
C42: 0.9143999997 | D42: 0 | E42: -0.9144000002 | F42: 0.9143999999 | G42: 1.293156882
C43: 0.9143999997 | D43: 0 | E43: -0.9144000002 | F43: 0.9143999999 | G43: 1.293156882
C44: 0.9143999997 | D44: 0 | E44: -0.9144000002 | F44: 0.9143999999 | G44: 1.293156882
C45: 21.8288 | D45: 23.9144 | E45: -1.00171743 | F45: 45.20755688 | G45: 45.58758422
C46: 21.82879999 | D46: 26.9144 | E46: -1.23031743 | F46: 48.20755688 | G46: 48.59462499
C47: 21.82879999 | D47: 29.9144 | E47: -1.51288257 | F47: 51.20755688 | G47: 51.60619078
C48: 21.82879999 | D48: 32.9144 | E48: -1.74148257 | F48: 54.20755688 | G48: 54.61478273
C49: 21.82879999 | D49: 35.9144 | E49: -1.8288 | F49: 57.20755688 | G49: 57.61415883
C50: 21.82879999 | D50: 38.9144 | E50: -1.74148257 | F50: 60.20755688 | G50: 60.60530557
C51: 21.82879999 | D51: 41.9144 | E51: -1.51288257 | F51: 63.20755688 | G51: 63.59484016
C52: 21.82879999 | D52: 44.9144 | E52: -1.23031743 | F52: 66.20755688 | G52: 66.58839292
C53: 21.82879999 | D53: 47.9144 | E53: -1.00171743 | F53: 69.20755688 | G53: 69.58645495
C54: 21.82879999 | D54: 50.9144 | E54: -0.9144000002 | F54: 72.20755688 | G54: 72.58631376
C55: 21.82879999 | D55: 51.05744368 | E55: -0.9031422187 | F55: 72.35060056 | G55: 72.72979976
C56: 21.82879999 | D56: 51.19696514 | E56: -0.8696460785 | F56: 72.49012202 | G56: 72.87240111
C57: 21.82879999 | D57: 51.32952891 | E57: -0.8147363656 | F57: 72.62268579 | G57: 73.01323864
C58: 21.82879999 | D58: 51.45187084 | E58: -0.7397651395 | F58: 72.74502772 | G58: 73.15144404
C59: 21.82879999 | D59: 51.56097844 | E59: -0.6465784404 | F59: 72.85413532 | G59: 73.28616522
C60: 21.82879999 | D60: 51.65416514 | E60: -0.5374708343 | F60: 72.94732202 | G60: 73.41657159
C61: 21.82879999 | D61: 51.72913637 | E61: -0.4151289125 | F61: 73.02229325 | G61: 73.54185914
C62: 21.82879999 | D62: 51.78404608 | E62: -0.2825651392 | F62: 73.07720296 | G62: 73.66125543
C63: 21.82879999 | D63: 51.81754222 | E63: -0.1430436743 | F63: 73.1106991 | G63: 73.77402435
C64: 21.82879999 | D64: 51.8288 | E64: 5.626397663e-10 | F64: 73.12195688 | G64: 73.87947064
C65: 312.3791818 | D65: 110.0479204 | E65: -1.7 | F65: 357.8664191 | G65: 358.5705822
C66: 312.3791818 | D66: 110.0479204 | E66: -1.7 | F66: 357.8664191 | G66: 358.5705822
C67: 312.3791818 | D67: 110.0479204 | E67: -1.7 | F67: 357.8664191 | G67: 358.5705822
C68: 312.3791818 | D68: 110.0479204 | E68: -1.7 | F68: 357.8664191 | G68: 358.5705822
C69: 312.3791818 | D69: 110.0479204 | E69: -1.7 | F69: 357.8664191 | G69: 358.5705822
C70: 312.3791818 | D70: 110.0479204 | E70: -1.7 | F70: 357.8664191 | G70: 358.5705822
C71: 312.3791818 | D71: 110.0479204 | E71: -1.7 | F71: 357.8664191 | G71: 358.5705822
C72: 312.3791818 | D72: 110.0479204 | E72: -1.7 | F72: 357.8664191 | G72: 358.5705822
C73: 312.3791818 | D73: 110.0479204 | E73: -1.7 | F73: 357.8664191 | G73: 358.5705822
C74: 312.3791818 | D74: 110.0479204 | E74: -1.7 | F74: 357.8664191 | G74: 358.5705822
C75: 312.3791818 | D75: 110.0479204 | E75: -1.7 | F75: 357.8664191 | G75: 358.5705822
C76: 312.3791818 | D76: 110.0479204 | E76: -1.7 | F76: 357.8664191 | G76: 358.5705822
C77: 312.3791818 | D77: 110.0479204 | E77: -1.7 | F77: 357.8664191 | G77: 358.5705822
C78: 312.3791818 | D78: 110.0479204 | E78: -1.7 | F78: 357.8664191 | G78: 358.5705822
C79: 312.3791818 | D79: 110.0479204 | E79: -1.7 | F79: 357.8664191 | G79: 358.5705822
C80: 312.3791818 | D80: 110.0479204 | E80: -1.7 | F80: 357.8664191 | G80: 358.5705822
C81: 312.3791818 | D81: 110.0479204 | E81: -1.7 | F81: 357.8664191 | G81: 358.5705822
C82: 312.3791818 | D82: 110.0479204 | E82: -1.7 | F82: 357.8664191 | G82: 358.5705822
C83: 312.3791818 | D83: 110.0479204 | E83: -1.7 | F83: 357.8664191 | G83: 358.5705822
C84: 312.3791818 | D84: 110.0479204 | E84: -1.7 | F84: 357.8664191 | G84: 358.5705822
C85: 312.3791818 | D85: 110.0479204 | E85: -1.7 | F85: 357.8664191 | G85: 358.5705822
C86: 312.3791818 | D86: 110.0479204 | E86: -1.7 | F86: 357.8664191 | G86: 358.5705822
C87: 312.3791818 | D87: 110.0479204 | E87: -1.7 | F87: 357.8664191 | G87: 358.5705822
C88: 312.3791818 | D88: 110.0479204 | E88: -1.7 | F88: 357.8664191 | G88: 358.5705822
C89: 312.3791818 | D89: 110.0479204 | E89: -1.7 | F89: 357.8664191 | G89: 358.5705822
C90: 312.3791818 | D90: 110.0479204 | E90: -1.7 | F90: 357.8664191 | G90: 358.5705822
C91: 312.3791818 | D91: 110.0479204 | E91: -1.7 | F91: 357.8664191 | G91: 358.5705822
C92: 312.3791818 | D92: 110.0479204 | E92: -1.7 | F92: 357.8664191 | G92: 358.5705822
C93: 312.3791818 | D93: 110.0479204 | E93: -1.7 | F93: 357.8664191 | G93: 358.5705822
C94: 312.3791818 | D94: 110.0479204 | E94: -1.7 | F94: 357.8664191 | G94: 358.5705822
C95: 312.3791818 | D95: 110.0479204 | E95: -1.7 | F95: 357.8664191 | G95: 358.5705822
C96: 312.3791818 | D96: 110.0479204 | E96: -1.7 | F96: 357.8664191 | G96: 358.5705822
C97: 312.3791818 | D97: 110.0479204 | E97: -1.7 | F97: 357.8664191 | G97: 358.5705822
C98: 312.3791818 | D98: 110.0479204 | E98: -1.7 | F98: 357.8664191 | G98: 358.5705822
C99: 312.3791818 | D99: 110.0479204 | E99: -1.7 | F99: 357.8664191 | G99: 358.5705822
C100: 312.3791818 | D100: 110.0479204 | E100: -1.7 | F100: 357.8664191 | G100: 358.5705822
C101: 312.3791818 | D101: 110.0479204 | E101: -1.7 | F101: 357.8664191 | G101: 358.5705822
C102: 312.3791818 | D102: 110.0479204 | E102: -1.7 | F102: 357.8664191 | G102: 358.5705822
C103: 312.3791818 | D103: 110.0479204 | E103: -1.7 | F103: 357.8664191 | G103: 358.5705822
C104: 312.3791818 | D104: 110.0479204 | E104: -1.7 | F104: 357.8664191 | G104: 358.5705822
C105: 312.3791818 | D105: 110.0479204 | E105: -1.7 | F105: 357.8664191 | G105: 358.5705822
C106: 312.3791818 | D106: 110.0479204 | E106: -1.7 | F106: 357.8664191 | G106: 358.5705822
C107: 312.3791818 | D107: 110.0479204 | E107: -1.7 | F107: 357.8664191 | G107: 358.5705822
C108: 312.3791818 | D108: 110.0479204 | E108: -1.7 | F108: 357.8664191 | G108: 358.5705822
C109: 312.3791818 | D109: 110.0479204 | E109: -1.7 | F109: 357.8664191 | G109: 358.5705822
C110: 312.3791818 | D110: 110.0479204 | E110: -1.7 | F110: 357.8664191 | G110: 358.5705822
C111: 312.3791818 | D111: 110.0479204 | E111: -1.7 | F111: 357.8664191 | G111: 358.5705822
C112: 312.3791818 | D112: 110.0479204 | E112: -1.7 | F112: 357.8664191 | G112: 358.5705822
C113: 312.3791818 | D113: 110.0479204 | E113: -1.7 | F113: 357.8664191 | G113: 358.5705822
C114: 312.3791818 | D114: 110.0479204 | E114: -1.7 | F114: 357.8664191 | G114: 358.5705822
C115: 312.3791818 | D115: 110.0479204 | E115: -1.7 | F115: 357.8664191 | G115: 358.5705822
C116: 312.3791818 | D116: 110.0479204 | E116: -1.7 | F116: 357.8664191 | G116: 358.5705822
C117: 312.3791818 | D117: 110.0479204 | E117: -1.7 | F117: 357.8664191 | G117: 358.5705822
C118: 312.3791818 | D118: 110.0479204 | E118: -1.7 | F118: 357.8664191 | G118: 358.5705822
C119: 312.3791818 | D119: 110.0479204 | E119: -1.7 | F119: 357.8664191 | G119: 358.5705822
C120: 312.3791818 | D120: 110.0479204 | E120: -1.7 | F120: 357.8664191 | G120: 358.5705822
C121: 312.3791818 | D121: 110.0479204 | E121: -1.7 | F121: 357.8664191 | G121: 358.5705822
C122: 312.3791818 | D122: 110.0479204 | E122: -1.7 | F122: 357.8664191 | G122: 358.5705822
C123: 312.3791818 | D123: 110.0479204 | E123: -1.7 | F123: 357.8664191 | G123: 358.5705822
C124: 312.3791818 | D124: 110.0479204 | E124: -1.7 | F124: 357.8664191 | G124: 358.5705822
C125: 312.3791818 | D125: 110.0479204 | E125: -1.7 | F125: 357.8664191 | G125: 358.5705822
C126: 312.3791818 | D126: 110.0479204 | E126: -1.7 | F126: 357.8664191 | G126: 358.5705822
C127: 312.3791818 | D127: 110.0479204 | E127: -1.7 | F127: 357.8664191 | G127: 358.5705822
C128: 312.3791818 | D128: 110.0479204 | E128: -1.7 | F128: 357.8664191 | G128: 358.5705822
C129: 312.3791818 | D129: 110.0479204 | E129: -1.7 | F129: 357.8664191 | G129: 358.5705822
C130: 312.3791818 | D130: 110.0479204 | E130: -1.7 | F130: 357.8664191 | G130: 358.5705822
C131: 312.3791818 | D131: 110.0479204 | E131: -1.7 | F131: 357.8664191 | G131: 358.5705822
C132: 312.3791818 | D132: 110.0479204 | E132: -1.7 | F132: 357.8664191 | G132: 358.5705822
C133: 312.3791818 | D133: 110.0479204 | E133: -1.7 | F133: 357.8664191 | G133: 358.5705822
C134: 312.3791818 | D134: 110.0479204 | E134: -1.7 | F134: 357.8664191 | G134: 358.5705822
C135: 312.3791818 | D135: 110.0479204 | E135: -1.7 | F135: 357.8664191 | G135: 358.5705822
C136: 312.3791818 | D136: 110.0479204 | E136: -1.7 | F136: 357.8664191 | G136: 358.5705822
C137: 312.3791818 | D137: 110.0479204 | E137: -1.7 | F137: 357.8664191 | G137: 358.5705822
C138: 312.3791818 | D138: 110.0479204 | E138: -1.7 | F138: 357.8664191 | G138: 358.5705822
C139: 312.3791818 | D139: 110.0479204 | E139: -1.7 | F139: 357.8664191 | G139: 358.5705822
C140: 312.3791818 | D140: 110.0479204 | E140: -1.7 | F140: 357.8664191 | G140: 358.5705822
C141: 312.3791818 | D141: 110.0479204 | E141: -1.7 | F141: 357.8664191 | G141: 358.5705822
C142: 312.3791818 | D142: 110.0479204 | E142: -1.7 | F142: 357.8664191 | G142: 358.5705822
C143: 312.3791818 | D143: 110.0479204 | E143: -1.7 | F143: 357.8664191 | G143: 358.5705822
C144: 312.3791818 | D144: 110.0479204 | E144: -1.7 | F144: 357.8664191 | G144: 358.5705822
C145: 312.3791818 | D145: 110.0479204 | E145: -1.7 | F145: 357.8664191 | G145: 358.5705822
C146: 312.3791818 | D146: 110.0479204 | E146: -1.7 | F146: 357.8664191 | G146: 358.5705822
C147: 312.3791818 | D147: 110.0479204 | E147: -1.7 | F147: 357.8664191 | G147: 358.5705822
C148: 312.3791818 | D148: 110.0479204 | E148: -1.7 | F148: 357.8664191 | G148: 358.5705822
C149: 312.3791818 | D149: 110.0479204 | E149: -1.7 | F149: 357.8664191 | G149: 358.5705822
C150: 312.3791818 | D150: 110.0479204 | E150: -1.7 | F150: 357.8664191 | G150: 358.5705822
C151: 312.3791818 | D151: 110.0479204 | E151: -1.7 | F151: 357.8664191 | G151: 358.5705822
C152: 312.3791818 | D152: 110.0479204 | E152: -1.7 | F152: 357.8664191 | G152: 358.5705822
C153: 312.3791818 | D153: 110.0479204 | E153: -1.7 | F153: 357.8664191 | G153: 358.5705822
C154: 312.3791818 | D154: 110.0479204 | E154: -1.7 | F154: 357.8664191 | G154: 358.5705822
